Cogmind - Beta 15 @@@ ROGUE MODE // 2025.08.30 @ 16:45:50 Player: Pitt Result: Destroyed by Z-Imprinter with Zionite Laser-M Performance ------------- Evolutions (1) 500 Regions Visited (5) 1000 Robots Destroyed (21) 105 Value Destroyed (336) 336 Prototype IDs (2) 40 Alien Tech Used (0) 0 Bonus (600) 600 TOTAL SCORE: 2581 Bonus ------- Met Imprinter 300 Was Imprinted 300 Cogmind --------- Core Integrity 0/400 Matter 97/300 Energy 170/170 System Corruption 0% Temperature Cool (18) Movement Flying (29) Location -7/Deep Caves Parts ------- > --- POWER (1) -------- Makeshift Power Source > --- PROPULSION (3) --- Cesium-ion Thruster Cesium-ion Thruster Cesium-ion Thruster > --- UTILITY (3) ------ Medium Storage Unit Weight Redist. System Authchip [Weapon] > --- WEAPON (2) ------- (None) > --- INVENTORY (10) --- ECM Suite Medium Armor Plating Makeshift Hacking Suite Authchip [R/Combat] Authchip [Propulsion] System Restoration Module Hacking Drone Bay (1/1) Autogun Heavy Battle Rifle CR-A16's Pointy Stick Peak State ------------ > --- POWER ------------ Makeshift Power Source > --- PROPULSION ------- Cesium-ion Thruster Cesium-ion Thruster Cesium-ion Thruster > --- UTILITY ---------- Medium Storage Unit Authchip [Weapon] Hacking Drone Bay > --- WEAPON ----------- Datajack > --- INVENTORY -------- Weight Redist. System ECM Suite Medium Armor Plating Makeshift Hacking Suite Authchip [R/Combat] Authchip [Propulsion] System Restoration Module Autogun Heavy Battle Rifle CR-A16's Pointy Stick [Rating: 31] Favorites ----------- Power Light Ion Engine Engine Light Ion Engine Power Core Light Nuclear Core Propulsion Cesium-ion Thruster Leg Aluminum Leg Wheel Compact Wheel Flight Unit Cesium-ion Thruster Utility Medium Storage Unit Device Improved Terrain Scanner Storage Medium Storage Unit Hackware Authchip [Weapon] Protection Medium Armor Plating Weapon Light Assault Rifle Ballistic Gun Light Assault Rifle Ballistic Cannon Light Cannon Launcher Grenade Launcher Impact Weapon Heavy Hammer Special Melee Weapon Datajack Build | -11 -10 -9 -9 -7 -7 ------- Run | Yrd Mat Mat Min Zio Dee Slots Evolved 2 | . . 2 . . . Power . | . . . . . . Propulsion 1 | . . 1 . . . Utility 1 | . . 1 . . . Weapon . | . . . . . . Parts Attached 35 | 7 8 15 . 5 . Power 8 | 1 2 4 . 1 . Engine 7 | 1 1 4 . 1 . Core 1 | . 1 . . . . Reactor . | . . . . . . Propulsion 9 | 2 3 4 . . . Treads . | . . . . . . Leg 3 | 2 1 . . . . Wheel 2 | . 2 . . . . Hover . | . . . . . . Flight 4 | . . 4 . . . Utility 9 | 2 1 2 . 4 . Device 4 | 1 . 2 . 1 . Storage 3 | 1 1 . . 1 . Processor . | . . . . . . Hackware 1 | . . . . 1 . Protection 1 | . . . . 1 . Artifact . | . . . . . . Weapon 9 | 2 2 5 . . . Energy Gun . | . . . . . . Energy Cannon . | . . . . . . Ballistic Gun 4 | 2 . 2 . . . Ballistic Cannon 1 | . 1 . . . . Launcher 1 | . 1 . . . . Special Weapon . | . . . . . . Impact Weapon 2 | . . 2 . . . Slashing Weapon . | . . . . . . Piercing Weapon . | . . . . . . Special Melee Weapon 1 | . . 1 . . . Unidentified Prototypes 1 | . . . . 1 . Parts Lost 10 | . . 9 . . 1 Power 3 | . . 3 . . . Propulsion 3 | . . 3 . . . Utility 1 | . . 1 . . . Weapon 3 | . . 2 . . 1 Highest Loss Streak 7 | . . 7 . . 1 To Critical Strikes . | . . . . . . Average Backups 8 | 2 7 8 8 9 10 Power . | . 1 . . . . Propulsion 1 | . 3 1 . . . Utility 2 | . 1 3 4 6 7 Weapon 2 | . 1 3 3 3 3 Tool/Special . | . . . . . . Unused Backups 10 | . 1 . . 2 7 Power . | . . . . . . Propulsion 1 | . 1 . . . . Utility 6 | . . . . 1 5 Weapon 3 | . . . . 1 2 Tool/Special . | . . . . . . Average Slot Usage (%) 82 | . 100 57 88 87 86 Engine 9 | . 8 8 11 11 11 Core 2 | . 5 . . . . Leg 7 | . 18 . . . . Wheel 5 | . 9 3 . . . Flight 13 | . . 18 33 33 33 Device 10 | . 14 6 11 11 11 Storage 12 | . 14 11 11 11 11 Hackware 2 | . . . . 10 11 Ballistic Gun 9 | . 19 1 22 1 . Ballistic Cannon 4 | . 8 1 . . . Impact Weapon 1 | . . 4 . . . Special Melee Weapon 2 | . . 2 . 10 9 Peak Build Rating 31 | 9 12 18 18 31 24 Average Rating 12 | 6 9 10 18 22 23 On Entrance 13 | . 9 12 18 18 24 Naked Turns . | . . . . . . Heaviest Build 21 | 11 20 21 21 21 15 Greatest Support 26 | 20 26 26 21 21 21 Greatest Overweight (x) 5 | . . 5 . . . Average Overweight (x) . | . . . . . . Largest Inventory Capacity 10 | 8 10 10 10 10 10 Average Capacity 9 | 7 8 10 10 10 10 Most Carried 10 | 5 9 10 8 10 10 Average Carried 8 | 2 7 8 8 9 10 Final Capacity 10 | 8 10 10 10 10 10 Final Carried 10 | 5 9 8 8 10 10 Class Distribution -------------------- 76% | Mutant 23% | Sprinter Dominant Class ---------------- Mutant | -10/Materials Mutant | -9/Materials Mutant | -9/Mines Sprinter | -7/Zion Sprinter | -7/Deep Caves Resources | -11 -10 -9 -9 -7 -7 ----------- Run | Yrd Mat Mat Min Zio Dee Matter Collected 724 | 181 249 192 . 102 . Remotely . | . . . . . . Salvage Created 606 | 95 280 231 . . . Parts 41 | 8 22 11 . . . Haulers Intercepted 2 | . . 2 . . . Recyclers Shooed 3 | 1 2 . . . . Parts Field Recycled . | . . . . . . Retrieved Matter . | . . . . . . Parts Self-Destructed . | . . . . . . Prevented . | . . . . . . Kills | -11 -10 -9 -9 -7 -7 ------- Run | Yrd Mat Mat Min Zio Dee Combat Hostiles Destroyed 11 | . 9 2 . . . Guns 4 | . 4 . . . . Cannons 3 | . 2 1 . . . AOE 3 | . 3 . . . . Classes Destroyed 8 | 2 4 2 . . . Builder 2 | . 2 . . . . Tunneler 2 | 2 . . . . . Hauler 2 | . . 2 . . . Recycler 3 | 1 1 1 . . . Operator 1 | . 1 . . . . Swarmer 6 | . 6 . . . . Grunt 4 | . 3 1 . . . Sentry 1 | . . 1 . . . Best Kill Streak 3 | 2 3 1 . . . Combat Bots Only 3 | . 3 1 . . . Max Kills in Single Turn 1 | 1 1 1 . . . Gunslinging . | . . . . . . Exploded 1 | . 1 . . . . Melee . | . . . . . . Uniques/NPCs Destroyed . | . . . . . . Combat | -11 -10 -9 -9 -7 -7 -------- Run | Yrd Mat Mat Min Zio Dee Hostile Shots Fired 126 | . 44 76 . . 6 Missed 24 | . 9 13 . . 2 Hits 102 | . 35 63 . . 4 Projectile 102 | . 35 63 . . 4 Critical Strikes 5 | . . 5 . . . Part Disruptions 1 | . . 1 . . . Damage Taken 1437 | . 368 960 . . 109 Core 534 | . 118 348 . . 68 Absorbed by Shields . | . . . . . . Regen/Repaired (Parts) 5 | . . . . 5 . Core Remaining (%) 76 | 100 52 . . . . Volleys Fired 105 | 9 66 30 . . . Largest 2 | 2 2 2 . . . Hottest 50 | 40 50 50 . . . Shots Fired 152 | 18 102 32 . . . Gun 92 | 18 71 3 . . . Cannon 55 | . 28 27 . . . Launcher 5 | . 3 2 . . . Special . | . . . . . . Kinetic 147 | 18 99 30 . . . Thermal . | . . . . . . Explosive 5 | . 3 2 . . . Electromagnetic . | . . . . . . Robot Hit Streak 11 | 9 11 10 . . . Robot Miss Streak 5 | 3 5 1 . . . Penetration Max . | . . . . . . Secondary Targets . | . . . . . . Shots Hit Robots 120 | 13 62 39 . 6 . Core Hits 35 | 7 19 9 . . . Critical Kills 2 | . 1 1 . . . Critical Parts Destroyed . | . . . . . . Critical Strikes 6 | . 5 1 . . . Destroy 1 | . 1 . . . . Blast 4 | . 4 . . . . Smash 1 | . . 1 . . . Melee Attacks 22 | . . 16 . 6 . Impact 9 | . . 9 . . . Slashing . | . . . . . . Piercing . | . . . . . . Sneak Attacks 17 | . . 11 . 6 . Combat Hostiles . | . . . . . . Follow-up Attacks 1 | . . 1 . . . Damage Inflicted 1893 | 97 878 918 . . . Guns 490 | 97 366 27 . . . Cannons 727 | . 360 367 . . . Explosions 209 | . 141 68 . . . Melee 448 | . . 448 . . . Ramming 19 | . 11 8 . . . Kinetic 1217 | 97 726 394 . . . Thermal . | . . . . . . Explosive 174 | . 141 33 . . . Electromagnetic 35 | . . 35 . . . Impact 448 | . . 448 . . . Slashing . | . . . . . . Piercing . | . . . . . . Highest Corruption 3 | . 3 . . . . Average Corruption 2 | . 2 . . . . Corruption Purged . | . . . . . . Corruption Blocked . | . . . . . . Effects 10 | . 10 . . . . Message Errors 4 | . 4 . . . . Matter Fused 2 | . 2 . . . . Energy Discharges 1 | . 1 . . . . Data Loss (minor) 3 | . 3 . . . . Overload Shots . | . . . . . . Overflow Damage 47 | . 7 40 . . . Projectiles 5 | . 5 . . . . Explosions 2 | . 2 . . . . Melee 40 | . . 40 . . . Knockbacks 4 | . 4 . . . . Impact . | . . . . . . Kinetic 4 | . 4 . . . . Secondary . | . . . . . . Self-Inflicted Damage 33 | . 1 32 . . . Shots 2 | . . 2 . . . Rammed 3 | . 1 2 . . . Targets Rammed 5 | . 3 2 . . . Kicked 2 | . 2 . . . . Crushed . | . . . . . . Highest Temperature 19 | . 15 19 . . 6 Average Temperature 6 | . 7 5 . . 6 Received Heat Transfer 498 | . 132 339 . . 27 Siege Activations . | . . . . . . Martial Activations . | . . . . . . Shielding Activations . | . . . . . . Robots Disrupted . | . . . . . . Combat Hostiles . | . . . . . . Robots Corrupted 1 | . . 1 . . . Combat Hostiles 1 | . . 1 . . . Parts Fried 3 | . . 3 . . . Impact Corruptions 4 | . . 4 . . . Robots Melted . | . . . . . . Combat Hostiles . | . . . . . . Parts Melted . | . . . . . . Heat Transferred . | . . . . . . Parts Sabotaged . | . . . . . . Parts Stolen . | . . . . . . Parts Stripped . | . . . . . . Power Chain Reactions . | . . . . . . Alert | -11 -10 -9 -9 -7 -7 ------- Run | Yrd Mat Mat Min Zio Dee Maximum Alert Level . | . . . . . . Low Security (%) 100 | 100 100 100 100 . . Level 1 . | . . . . . . Level 2 . | . . . . . . Level 3 . | . . . . . . Level 4 . | . . . . . . Level 5 . | . . . . . . High Security . | . . . . . . Max Security . | . . . . . . Peak Influence 92 | 10 92 34 10 . . Initial 10 | . . 3 10 . . Average 15 | 1 27 3 10 . . Influence Increases 467 | 15 304 148 . . . Destroy 0b10 Robot/C 220 | . 180 40 . . . Destroy 0b10 Robot/NC 50 | 15 20 15 . . . Destroy Leader 44 | . 30 14 . . . Successful Hack 22 | . 22 . . . . Disable Machine 30 | . . 30 . . . Destroy Structure 26 | . 22 4 . . . Partial Spotted 45 | . 15 30 . . . Lose Combat Pursuer 30 | . 15 15 . . . Influence Decreases 467 | 15 295 128 19 10 . Entered New Map 35 | . . 6 19 10 . Time Decay 413 | 15 295 103 . . . Lost Part 19 | . . 19 . . . Squads Dispatched 1 | . 1 . . . . Investigation . | . . . . . . Extermination . | . . . . . . Reinforcement 1 | . 1 . . . . Assault . | . . . . . . Garrison . | . . . . . . Intercept . | . . . . . . Searches Triggered . | . . . . . . Construction Impeded . | . . . . . . Haulers Reinforced . | . . . . . . Active Scanning Responses . | . . . . . . Cargo Convoy Interrupts . | . . . . . . Stealth | -11 -10 -9 -9 -7 -7 --------- Run | Yrd Mat Mat Min Zio Dee Distress Signals 4 | . 3 1 . . . Communications Jammed . | . . . . . . Distress Signals . | . . . . . . Times Spotted 34 | . 20 6 . . 8 Peak Tracking Total 9 | . 4 5 . . 9 Tactical Retreats 3 | . 1 1 . . 1 Traps | -11 -10 -9 -9 -7 -7 ------- Run | Yrd Mat Mat Min Zio Dee Traps Triggered 3 | . 3 . . . . Indirectly . | . . . . . . Trap Hack Attempts . | . . . . . . Triggered . | . . . . . . Disarmed . | . . . . . . Reprogrammed . | . . . . . . Reused . | . . . . . . Traps Extracted . | . . . . . . Installed . | . . . . . . Triggered . | . . . . . . Machines | -11 -10 -9 -9 -7 -7 ---------- Run | Yrd Mat Mat Min Zio Dee Machines Disabled 2 | . . 2 . . . Max in Single Turn 1 | . . 1 . . . Machines Repaired . | . . . . . . Machines Dismantled . | . . . . . . Machines Sabotaged . | . . . . . . Overloaded Fab Kills . | . . . . . . Hacking | -11 -10 -9 -9 -7 -7 --------- Run | Yrd Mat Mat Min Zio Dee Machines Accessed 9 | . 7 1 . 1 . Terminals 7 | . 6 1 . . . Fabricators . | . . . . . . Repair Stations . | . . . . . . Recycling Units 1 | . 1 . . . . Scanalyzers . | . . . . . . Garrison Access . | . . . . . . Total Hacks 23 | . 20 2 . 1 . Successful 13 | . 12 . . 1 . Failed 10 | . 8 2 . . . Catastrophic 2 | . 1 1 . . . Database Lockouts . | . . . . . . Manual 28 | . 18 2 . 8 . Terminals 20 | . 18 2 . . . Fabricators . | . . . . . . Repair Stations . | . . . . . . Recycling Units 2 | . 2 . . . . Scanalyzers . | . . . . . . Garrison Access . | . . . . . . Terminal Hacks 7 | . 6 . . 1 . Part Schematic 3 | . 2 . . 1 . Terminal Index 1 | . 1 . . . . Alert Level 2 | . 2 . . . . Zone Layout 1 | . 1 . . . . Fabricator Hacks . | . . . . . . Repair Station Hacks . | . . . . . . Recycling Unit Hacks . | . . . . . . Scanalyzer . | . . . . . . Garrison Access Hacks . | . . . . . . Unauthorized Hacks 6 | . 6 . . . . Terminals 5 | . 5 . . . . Botnet 4 | . 4 . . . . Operators 1 | . 1 . . . . Fabricators . | . . . . . . Repair Stations . | . . . . . . Recycling Units 1 | . 1 . . . . Monitor 1 | . 1 . . . . Scanalyzers . | . . . . . . Garrison Access . | . . . . . . Data Cores Recovered . | . . . . . . Used . | . . . . . . Hacking Detections 8 | . 7 1 . . . Full Trace Events 1 | . 1 . . . . Feedback Events . | . . . . . . Feedback Blocked . | . . . . . . Robot Schematics Acquired . | . . . . . . Robots Built . | . . . . . . Authchips . | . . . . . . Time . | . . . . . . Total Robot Build Rating . | . . . . . . Part Schematics Acquired 3 | . 2 . . 1 . Parts Built . | . . . . . . Authchips . | . . . . . . Time . | . . . . . . Total Part Build Rating . | . . . . . . Parts Repaired . | . . . . . . Time . | . . . . . . Parts Recycled . | . . . . . . Recycled Matter . | . . . . . . Retrieved Matter . | . . . . . . Retrieved Components . | . . . . . . Parts Scanalyzed . | . . . . . . Part Schematics Acquired . | . . . . . . Parts Damaged . | . . . . . . Bothacking | -11 -10 -9 -9 -7 -7 ------------ Run | Yrd Mat Mat Min Zio Dee Used RIF Installer . | . . . . . . Robots Hacked 10 | . . 4 . 6 . Non-combat 7 | . . 4 . 3 . Combat 3 | . . . . 3 . Robot Hacks Applied 13 | . . 7 . 6 . parse_system 9 | . . 3 . 6 . no_distress 3 | . . 3 . . . find_recycling 1 | . . 1 . . . Relay Couplers Released . | . . . . . . Fabnet Peak Effective % . | . . . . . . Robots Rewired . | . . . . . . Allies Hacked . | . . . . . . Hacks Repelled . | . . . . . . Allies | -11 -10 -9 -9 -7 -7 -------- Run | Yrd Mat Mat Min Zio Dee Total Allies 4 | . . . . 4 . Largest Group 4 | . . . . 4 4 Highest-Rated Group 155 | . . . . 155 155 Highest-Rated Ally 40 | . . . . 40 40 Total Orders . | . . . . . . Ally Attacks . | . . . . . . Total Damage . | . . . . . . Kills . | . . . . . . Allies Corrupted . | . . . . . . Allies Melted . | . . . . . . Intel | -11 -10 -9 -9 -7 -7 ------- Run | Yrd Mat Mat Min Zio Dee Active Infowar (turns) 1397 | 60 912 425 . . . Terrain 1085 | 60 912 113 . . . Seismic 312 | . . 312 . . . Robot Analysis Total . | . . . . . . Derelict Logs Recovered . | . . . . . . Drone Launches . | . . . . . . Drone Recoveries . | . . . . . . Exploration | -11 -10 -9 -9 -7 -7 ------------- Run | Yrd Mat Mat Min Zio Dee Turns Passed 2222 | 121 912 772 4 349 64 Spaces Moved 1844 | 71 529 305 5 785 149 Core 36 | 3 . 33 . . . Treads . | . . . . . . Legs 418 | 68 350 . . . . Wheels 254 | . 179 75 . . . Hover . | . . . . . . Flight 1136 | . . 197 5 785 149 Fastest Speed 29 | 50 90 29 29 29 29 Average Speed 67 | 117 109 101 29 29 29 Slowest Speed 300 | 120 120 300 29 29 29 Overloaded Moves . | . . . . . . Propulsion Burnouts . | . . . . . . Robots Hopped 2 | . . 2 . . . Potential Cave-ins . | . . . . . . Cave-ins Triggered . | . . . . . . Exploration Rate (%) 36 | 4 82 25 8 70 27 Regions Visited 5 Branch Regions 3 Pre-discovered Areas . | . . . . . . Known Exits Taken . | . . . . . . Unknown Exits Taken 5 | 1 1 1 1 1 . Scrap Searched 4 | . . . . 4 . Spaces Dug . | . . . . . . Terrain Destroyed 29 | . 26 3 . . . Melee . | . . . . . . Projectile . | . . . . . . AOE 29 | . 26 3 . . . Terrain Rammed . | . . . . . . Walls Destroyed . | . . . . . . Machines Disabled . | . . . . . . Actions | -11 -10 -9 -9 -7 -7 --------- Run | Yrd Mat Mat Min Zio Dee Total 2654 | 91 770 715 6 903 169 Wait 594 | . 151 332 2 89 20 Move 1835 | 70 528 300 4 784 149 Hop 2 | . . 2 . . . Pick Up 27 | 5 6 8 . 8 . Fast Attach 14 | 7 . 5 . 2 . Attach 10 | . . 10 . . . Detach 6 | . . 5 . 1 . Swap 17 | . 10 2 . 5 . Drop 18 | . 6 4 . 8 . Fire 105 | 9 66 30 . . . Melee 21 | . . 15 . 6 . Ram 3 | . 1 2 . . . Kick 2 | . 2 . . . . Crush . | . . . . . . Escape Stasis . | . . . . . . Rewire . | . . . . . . Trap . | . . . . . . Miscellaneous . | . . . . . . Route ------- -11/Scrapyard -10/Materials (discovered 5 exits: *Mat x2 / [*Min x2] / [*Sub]) -9/Materials -9/Mines -7/Zion (discovered 2 exits: [*Dee] / [*Pro]) -7/Deep Caves History --------- Turn | Location | Event 23 | -11/Scrapyard | Discovered new exit (range 16) 122 | -11/Scrapyard | Entered Materials 311 | -10/Materials | Build established: Mutant 389 | -10/Materials | Discovered new exit (range 15) 540 | -10/Materials | Discovered new exit (range 7) 605 | -10/Materials | Discovered new exit (range 16) 939 | -10/Materials | Discovered new exit (range 10) 963 | -10/Materials | Discovered new exit (range 11) 1034 | -10/Materials | Entered another Materials area 1034 | -9/Materials | Evolved 2 slots: Propulsion x1, Utility x1 1183 | -9/Materials | Core integrity fell below 50% 1208 | -9/Materials | Lost 7 parts (2p2n1u2w) 1244 | -9/Materials | Core integrity fell below 20% 1776 | -9/Materials | Discovered new exit (range 13) 1806 | -9/Materials | Entered Mines 1807 | -9/Mines | A Derelict revealed a hidden shortcut to a safe place 1810 | -9/Mines | Entered Zion 1856 | -7/Zion | Discovered new exit (range 16) 1905 | -7/Zion | Found CR-A16's Pointy Stick 1950 | -7/Zion | Acquired unknown access codes intercepted by a Zionite 1974 | -7/Zion | Met Imprinter 1983 | -7/Zion | Imprinted 1985 | -7/Zion | Declared Zion's savior 2034 | -7/Zion | Opened final containment barrier to the Deep Caves 2046 | -7/Zion | Given the Hacking Drone Bay 2047 | -7/Zion | Found Prototype Device 2049 | -7/Zion | Identified Hacking Drone Bay 2073 | -7/Zion | Build established: Sprinter 2087 | -7/Zion | Discovered new exit (range 3) 2087 | -7/Zion | Saw the warning signs outside the Deep Caves entrance 2159 | -7/Zion | Entered Deep Caves 2159 | -7/Deep Caves | Accompanied by 4 allies 2222 | -7/Deep Caves | Attacked by Z-Imprinter 2223 | -7/Deep Caves | Z-Facility disabled 2223 | -7/Deep Caves | Destroyed by Z-Imprinter with Zionite Laser-M Last Messages --------------- 02087_ EXIT=FOUND 02087_ The room is plastered with warning signs of various forms. 02108_ PUBLIC SERVICE ANNOUNCEMENT: Quarantine Array scanned 3 systems, cleaned 1. LOCATION=UNKNOWN GOAL=ESCAPE 02161_ A5-DDN(M): "Okay, we didn't really expect you'd be crazy enough to head out this way. We'll go back and get... reinforcements... yeah." 02161_ A5-DDN(M) slips into the shadows. 02162_ I9-NG3(M) slips into the shadows. 02162_ NR-E90(M) slips into the shadows. 02163_ GK-IGX(M) slips into the shadows. 02209_ NEW_ZION: Z-Facility proximity alert. 02215_ Datajack destroyed. Z-Imprinter: GET AWAY FROM HERE! I've worked too hard for our future just to have you ruin everything! 02223_ Z-Facility disabled. Map ----- +----------------------------------------------------+ | | | | | | | | | | | | | | | | | ?????????????????????????????????????????????????? | | ??????????????###############????????????????????? | | ???????????#### ##???????????????????? | | ??????????## #????###????????????? | | ??????#??## ###### ##?????######? | | ????# ## ## # #???### ## | | ## ##### # | | # | | # | | #? | | #? | | """"" """""" ## | | """""""""""""" # | | """""""""""""" a | | """"""""""""" | | """"""""""" | | ???""""""""""" | | ??????""""""""@ a # | | ???????"""""""" ## | | ? ?????????"""""""" #? | | ? ? ???????????"" " " #? | | ??? ????????????????"o o # | | ???????????????????" # | | ???????????????????""o # | | ????????????????????? ## | | ?????????????????????"" #? | | ?????????????????????""""o # | | ?????????????????????? # | | ??????????????????????"" ## | | ???????????????????????"" ##? | | ?????????????????????????" #?? | | ?????????????????????????" ?? | | ?????????????????????????? ???? ???? | | ?????????????????????????????????? ??????? | | ?????????????????????????????????????????????????? | | ?????????????????????????????????????????????????? | | ?????????????????????????????????????????????????? | | ?????????????????????????????????????????????????? | | ?????????????????????????????????????????????????? | | ?????????????????????????????????????????????????? | | ?????????????????????????????????????????????????? | | ?????????????????????????????????????????????????? | +----------------------------------------------------+ Best States ------------- Heat Dissipation 28 Energy Generation 15 Energy Capacity 250 Matter Stores 211 Matter Capacity 300 Sight Range 16 Terrain Scan Range 16 Terrain Scan Density 10 Additional Mass Support 6 Evasion (%) 64 Authchip Count 3 Item Schematics ----------------- Med. Storage Unit | -10/Materials | Hacked Hover Unit | -10/Materials | Hacked Flamer | -7/Zion | Free Robot Schematics ------------------ None Fabricated ------------ Nothing Repaired ---------- Nothing Alien Tech Used ----------------- None Achievements -------------- None Challenges ------------ None Game ------ Seed ImpactFlightNanosword Manual? 0 Play Time 00:37:55 Cumulative 237.6 hours Start 2025.08.30 @ 15:40:11 End 2025.08.30 @ 16:45:50 Sessions 3 Manual Loads 0 Difficulty Rogue Special Mode None Game No. 369 Rogue 369 Adventurer 0 Explorer 0 Win Type - Total 0 Types 0/0/0/0/0/0/0/0/0/0 Lore% 38 Gallery% 52 Achievement% 41 Wizard Run 0 Options --------- Layout 1 ASCII 0 Keyboard 0 Movement Mouse Keybinds 0 Fullscreen 1 Font 16/SmallcapsGlow Map View 55x38 Zoom Use 0% Tactical HUD 1 Map Filters NONE Filters NONE Steam 1 RUN: e0594ed2-7e43-483b-963d-c325dc98ab29